[Event "13th SRB-ch Men 2019"]
[Site "Beograd"]
[Date "2019.04.06"]
[Round "1.3"]
[White "Savic, Miodrag R"]
[Black "Nestorovic, Nikola"]
[Result "0-1"]
[ECO "C50"]
[WhiteElo "2498"]
[BlackElo "2473"]
[Annotator "RC"]
[PlyCount "80"]
[EventDate "2019.04.06"]
[EventType "tourn"]
[EventCountry "SRB"]
[SourceTitle "playchess.com"]
[Source "ChessBase"]
[SourceQuality "1"]
[TimeControl "40/5400+30:1800+30"]

1. e4 {[%emt 0:00:00]} e5 {[%emt 0:00:00]} 2. Nf3 {[%emt 0:00:00]} Nc6 {[%emt 0:00:00]} 3. Bc4 {[%emt 0:00:19]} Bc5 {[%emt 0:00:00]} 4. O-O {[%emt 0:00:23]} Nf6 {[%emt 0:00:08]} 5. d3 {[%emt 0:00:08]} O-O {[%emt 0:00:22]} 6. Nbd2 {[%emt 0:00:15]} d6 {[%emt 0:02:12]} 7. a3 {[%emt 0:01:39]} Ne7 {[%emt 0:03:40]} 8. b4 {[%emt 0:08:35]} Bb6 {[%emt 0:00:09]} 9. Bb3 {[%emt 0:00:23]} c6 {[%emt 0:03:33]} 10. Nc4 {[%emt 0:09:56]} Bc7 {[%emt 0:00:35]} 11. Re1 {[%emt 0:07:35]} Ng6 {[%emt 0:11:42]} 12. Bb2 {[%emt 0:08:14]} Be6 {[%emt 0:04:19]} 13. Ncd2 {[%emt 0:03:32]} Re8 {[%emt 0:10:44]} 14. Bxe6 {[%emt 0:05:50]} Rxe6 {[%emt 0:00:05]} 15. a4 {[%emt 0:04:21]} a5 {[%emt 0:05:44]} 16. b5 {[%emt 0:01:41]} cxb5 {[%emt 0:00:54]} 17. axb5 {[%emt 0:00:02]} d5 {[%emt 0:00:06]} 18. Qe2 {[%emt 0:17:30]} h6 {[%emt 0:01:15]} 19. g3 {[%emt 0:00:14]} Qd7 {[%emt 0:06:56]} 20. exd5 {[%emt 0:01:00]} Nxd5 {[%emt 0:00:37]} 21. Ne4 {[%emt 0:00:48]} b6 {[%emt 0:04:46]} 22. c4 {[%emt 0:01:59]} Nb4 {[%emt 0:07:51]} 23. Rad1 {[%emt 0:01:57]} f5 {[%emt 0:01:26]} 24. Nc3 {[%emt 0:00:41]} Rd8 {[%emt 0:06:35]} 25. d4 {[%emt 0:04:47]} e4 {[%emt 0:00:35]} 26. d5 {[%emt 0:02:02]} Ree8 {[%emt 0:02:51]} 27. Nd4 {[%emt 0:00:25]} Nd3 {[%emt 0:01:01]} 28. Nc6 {[%emt 0:08:36]} Nxe1 {[%emt 0:06:32]} 29. Rxe1 {[%emt 0:00:08]} Ne5 {[%emt 0:00:39]} 30. Rd1 {[%emt 0:02:08]} Nf3+ {[%emt 0:05:28]} 31. Kg2 {[%emt 0:00:39]} Bd6 {[%emt 0:00:52]} 32. Nxd8 {[%emt 0:03:57]} Qxd8 {[%emt 0:00:06]} 33. Na4 {[%emt 0:02:13]} f4 {[%emt 0:02:07]} 34. c5 {[%emt 0:00:44]} bxc5 {[%emt 0:00:54]} 35. Nc3 {[%emt 0:01:50]} Qd7 {[%emt 0:01:06]} 36. Qf1 {[%emt 0:02:48]} Qg4 {[%emt 0:02:46]} 37. Ne2 {[%emt 0:00:05]} Ng5 {[%emt 0:03:26]} 38. Ng1 {[%emt 0:00:21]} f3+ {[%emt 0:00:32]} 39. Kh1 {[%emt 0:00:01]} e3 {[%emt 0:00:05]} 40. Qe1 {[%emt 0:00:00]} Ne4 {[%emt 0:00:00]} 0-1

[Event "13th SRB-ch Men 2019"]
[Site "Beograd"]
[Date "2019.04.07"]
[Round "2.1"]
[White "Zajic, Milan"]
[Black "Cabarkapa, Novak"]
[Result "1/2-1/2"]
[ECO "C13"]
[WhiteElo "2507"]
[BlackElo "2454"]
[Annotator "RC"]
[PlyCount "24"]
[EventDate "2019.04.06"]
[EventType "tourn"]
[EventCountry "SRB"]
[SourceTitle "playchess.com"]
[Source "ChessBase"]
[SourceQuality "1"]
[TimeControl "40/5400+30:1800+30"]

1. e4 {[%emt 0:02:36]} e6 {[%emt 0:00:00]} 2. d4 {[%emt 0:00:34]} d5 {[%emt 0:00:00]} 3. Nc3 {[%emt 0:00:14]} Nf6 {[%emt 0:00:00]} 4. Bg5 {[%emt 0:00:11]} dxe4 {[%emt 0:00:03]} 5. Nxe4 {[%emt 0:00:08]} Be7 {[%emt 0:00:05]} 6. Bxf6 {[%emt 0:00:09]} gxf6 {[%emt 0:00:05]} 7. Qd2 {[%emt 0:00:29]} c5 {[%emt 0:00:19]} 8. Nxc5 {[%emt 0:04:50]} Bxc5 {[%emt 0:00:07]} 9. dxc5 {[%emt 0:00:07]} Qxd2+ {[%emt 0:00:04]} 10. Kxd2 {[%emt 0:00:03]} Ke7 {[%emt 0:00:05]} 11. Nf3 {[%emt 0:28:53]} Rd8+ {[%emt 0:04:39]} 12. Ke3 {[%emt 0:12:14]} Nd7 {[%emt 0:00:46]} 1/2-1/2

[Event "13th SRB-ch Men 2019"]
[Site "Beograd"]
[Date "2019.04.07"]
[Round "2.2"]
[White "Kovacevic, Aleksandar"]
[Black "Damljanovic, Branko"]
[Result "1/2-1/2"]
[ECO "B41"]
[WhiteElo "2503"]
[BlackElo "2486"]
[Annotator "ChessBase"]
[PlyCount "56"]
[EventDate "2019.04.06"]
[EventType "tourn"]
[EventCountry "SRB"]
[SourceTitle "playchess.com"]
[Source "ChessBase"]
[SourceQuality "1"]
[TimeControl "40/5400+30:1800+30"]

1. e4 {[%emt 0:00:00]} c5 {[%emt 0:00:00]} 2. Nf3 {[%emt 0:00:00]} e6 {[%emt 0:00:00]} 3. d4 {[%emt 0:00:00]} cxd4 {[%emt 0:00:00]} 4. Nxd4 {[%emt 0:00:03]} a6 {[%emt 0:00:01]} 5. c4 {[%emt 0:00:19]} Nf6 {[%emt 0:00:07]} 6. Nc3 {[%emt 0:00:06]} Bb4 {[%emt 0:00:06]} 7. Bd3 {[%emt 0:00:34]} Qc7 {[%emt 0:02:20]} 8. O-O {[%emt 0:00:30]} Nc6 {[%emt 0:01:41]} 9. Nxc6 {[%emt 0:00:20]} dxc6 {[%emt 0:00:15]} 10. Be3 {[%emt 0:00:20]} Bxc3 {[%emt 0:11:40]} 11. bxc3 {[%emt 0:00:07]} e5 {[%emt 0:01:47]} 12. Rb1 {[%emt 0:04:48]} c5 {[%emt 0:07:03]} 13. Qb3 {[%emt 0:23:16]} Nd7 {[%emt 0:04:18]} 14. Be2 {[%emt 0:03:08]} O-O {[%emt 0:04:55]} 15. Bg4 {[%emt 0:03:51]} Nf6 {[%emt 0:06:24]} 16. Bxc8 {[%emt 0:00:21]} Rfxc8 {[%emt 0:00:02]} 17. f3 {[%emt 0:00:41]} Rab8 {[%emt 0:01:36]} 18. Rfd1 {[%emt 0:05:10]} b5 {[%emt 0:19:39]} 19. cxb5 {[%emt 0:03:49]} axb5 {[%emt 0:00:03]} 20. a4 {[%emt 0:00:32]} c4 {[%emt 0:02:55]} 21. Qb4 {[%emt 0:02:42]} bxa4 {[%emt 0:00:33]} 22. Qxa4 {[%emt 0:00:18]} h6 {[%emt 0:00:46]} 23. Rb4 {[%emt 0:10:35]} Ra8 {[%emt 0:04:06]} 24. Qc2 {[%emt 0:09:52]} Ra3 {[%emt 0:05:29]} 25. Rb5 {[%emt 0:10:20]} Rb3 {[%emt 0:10:21]} 26. Rxb3 {[%emt 0:06:40]} cxb3 {[%emt 0:00:07]} 27. Qxb3 {[%emt 0:00:03]} Qxc3 {[%emt 0:00:11]} 28. Qxc3 {[%emt 0:01:33]} Rxc3 {[%emt 0:00:03]} 1/2-1/2

[Event "13th SRB-ch Men 2019"]
[Site "Beograd"]
[Date "2019.04.08"]
[Round "3.4"]
[White "Damljanovic, Branko"]
[Black "Nestorovic, Nikola"]
[Result "1/2-1/2"]
[ECO "A09"]
[WhiteElo "2486"]
[BlackElo "2473"]
[Annotator "RC"]
[PlyCount "88"]
[EventDate "2019.04.06"]
[EventType "tourn"]
[EventCountry "SRB"]
[SourceTitle "playchess.com"]
[Source "ChessBase"]
[SourceQuality "1"]
[TimeControl "40/5400+30:1800+30"]

1. Nf3 {[%emt 0:00:05]} d5 {[%emt 0:00:12]} 2. g3 {[%emt 0:00:09]} g6 {[%emt 0:00:06]} 3. c4 {[%emt 0:00:19]} d4 {[%emt 0:00:26]} 4. Bg2 {[%emt 0:00:07]} Bg7 {[%emt 0:00:08]} 5. d3 {[%emt 0:00:06]} e5 {[%emt 0:00:41]} 6. b4 {[%emt 0:00:28]} Ne7 {[%emt 1:31:27]} 7. Nbd2 a5 {[%emt 0:00:00]} 8. b5 {[%emt 0:02:04]} c5 {[%emt 0:00:00]} 9. Ba3 {[%emt 0:11:46]} Nd7 {[%emt 0:00:00]} 10. Rb1 {[%emt 0:00:46]} O-O {[%emt 0:00:00]} 11. O-O {[%emt 1:19:40]} Qc7 12. Nb3 Qb6 13. Re1 a4 14. Nbd2 {[%emt 0:00:00]} Nf5 {[%emt 0:00:00]} 15. e3 {[%emt 0:00:00]} dxe3 {[%emt 0:00:00]} 16. fxe3 {[%emt 0:00:00]} Bh6 {[%emt 0:00:00]} 17. Nf1 {[%emt 0:00:00]} Re8 {[%emt 0:00:00]} 18. g4 {[%emt 0:00:00]} e4 {[%emt 0:00:00]} 19. N3d2 {[%emt 0:00:00]} Nd6 {[%emt 0:00:00]} 20. d4 {[%emt 0:04:30]} Bg7 {[%emt 0:00:00]} 21. Ng3 {[%emt 0:00:00]} cxd4 {[%emt 0:00:00]} 22. Ndxe4 {[%emt 0:00:00]} Nxe4 {[%emt 0:00:00]} 23. Nxe4 {[%emt 0:00:00]} Ne5 {[%emt 0:00:00]} 24. Bc5 {[%emt 0:00:00]} Qd8 {[%emt 0:00:00]} 25. h3 {[%emt 0:00:00]} d3 {[%emt 0:00:00]} 26. Bd4 {[%emt 0:00:00]} Nxc4 {[%emt 0:00:00]} 27. Bxg7 {[%emt 0:00:00]} Kxg7 {[%emt 0:00:00]} 28. Rb4 {[%emt 0:00:00]} Ne5 {[%emt 0:00:00]} 29. Rd4 {[%emt 0:00:00]} Qe7 {[%emt 0:00:00]} 30. Nf2 {[%emt 0:00:00]} Bd7 {[%emt 0:04:04]} 31. Rd5 {[%emt 0:03:34]} Rac8 {[%emt 0:08:26]} 32. Nxd3 {[%emt 0:01:45]} Nxd3 {[%emt 0:00:00]} 33. Qxd3 {[%emt 0:00:07]} Be6 {[%emt 0:00:00]} 34. Rd4 {[%emt 0:00:32]} a3 {[%emt 0:00:00]} 35. b6 {[%emt 0:00:47]} Qc5 {[%emt 0:00:21]} 36. Ra1 {[%emt 0:00:41]} Qxb6 {[%emt 0:00:44]} 37. Qxa3 {[%emt 0:00:08]} Rc2 {[%emt 0:00:29]} 38. Qb4 {[%emt 0:00:18]} Qc7 {[%emt 0:01:01]} 39. Rd2 {[%emt 0:00:32]} Rd8 {[%emt 0:00:51]} 40. Rxd8 {[%emt 0:00:00]} Qxd8 {[%emt 0:00:00]} 41. Qd4+ {[%emt 0:01:41]} Qxd4 {[%emt 0:02:03]} 42. exd4 {[%emt 0:00:15]} Bxa2 {[%emt 0:01:14]} 43. Bxb7 {[%emt 0:00:09]} Rd2 {[%emt 0:00:04]} 44. Bf3 {[%emt 0:00:22]} Be6 {[%emt 0:01:04]} 1/2-1/2

[Event "13th SRB-ch Men 2019"]
[Site "Beograd"]
[Date "2019.04.08"]
[Round "3.5"]
[White "Cabarkapa, Novak"]
[Black "Kovacevic, Aleksandar"]
[Result "0-1"]
[ECO "B25"]
[WhiteElo "2454"]
[BlackElo "2503"]
[Annotator "ChessBase"]
[PlyCount "98"]
[EventDate "2019.04.06"]
[EventType "tourn"]
[EventCountry "SRB"]
[SourceTitle "playchess.com"]
[Source "ChessBase"]
[SourceQuality "1"]
[TimeControl "40/5400+30:1800+30"]

1. e4 {[%emt 0:00:00]} c5 {[%emt 0:00:00]} 2. d3 {[%emt 0:00:00]} Nc6 {[%emt 0:00:08]} 3. g3 {[%emt 0:00:06]} g6 {[%emt 0:00:51]} 4. Bg2 {[%emt 0:00:06]} Bg7 {[%emt 0:00:03]} 5. f4 {[%emt 0:00:05]} d6 {[%emt 0:01:52]} 6. Nf3 {[%emt 0:00:14]} e5 {[%emt 0:01:16]} 7. O-O {[%emt 0:01:07]} Nge7 {[%emt 0:00:20]} 8. Nc3 {[%emt 0:01:51]} O-O {[%emt 0:01:23]} 9. f5 {[%emt 0:00:37]} gxf5 {[%emt 0:01:01]} 10. Nh4 {[%emt 0:00:27]} f4 {[%emt 0:00:21]} 11. gxf4 {[%emt 0:00:43]} Ng6 {[%emt 0:00:30]} 12. Nf5 {[%emt 0:00:30]} Bxf5 {[%emt 0:00:30]} 13. exf5 {[%emt 0:00:30]} Nxf4 {[%emt 0:00:30]} 14. Bxf4 {[%emt 0:00:30]} exf4 {[%emt 1:28:15]} 15. Rxf4 {[%emt 0:03:45]} Be5 {[%emt 0:00:00]} 16. Rg4+ {[%emt 0:16:54]} Kh8 {[%emt 0:00:00]} 17. Nd5 {[%emt 0:05:32]} Ne7 {[%emt 0:00:00]} 18. Nxe7 {[%emt 0:21:04]} Qxe7 {[%emt 0:00:00]} 19. c3 {[%emt 0:00:07]} Rg8 {[%emt 0:00:00]} 20. d4 {[%emt 0:06:59]} Rxg4 {[%emt 0:00:00]} 21. Qxg4 {[%emt 0:00:06]} Rg8 {[%emt 0:00:00]} 22. Qe4 {[%emt 0:00:07]} Bxd4+ {[%emt 0:00:00]} 23. Kh1 {[%emt 0:00:05]} Be5 {[%emt 0:00:00]} 24. Rc1 {[%emt 0:07:01]} Qg5 {[%emt 0:00:00]} 25. Rc2 {[%emt 0:00:20]} Qh5 {[%emt 0:00:00]} 26. Bf1 {[%emt 0:05:28]} Rg4 {[%emt 0:00:00]} 27. Qd3 {[%emt 0:06:42]} c4 {[%emt 0:00:00]} 28. Qe3 {[%emt 0:01:56]} Qxf5 {[%emt 0:00:00]} 29. Rf2 {[%emt 0:00:11]} Qg6 {[%emt 0:00:00]} 30. Bg2 {[%emt 0:01:03]} b6 {[%emt 0:00:00]} 31. Qf3 {[%emt 0:01:21]} Kg7 {[%emt 0:00:00]} 32. Qf5 {[%emt 0:03:43]} Qxf5 {[%emt 0:06:34]} 33. Rxf5 {[%emt 0:00:06]} Rh4 {[%emt 0:00:21]} 34. h3 {[%emt 0:01:01]} f6 {[%emt 0:00:13]} 35. Kg1 {[%emt 0:01:11]} b5 {[%emt 0:00:44]} 36. a3 {[%emt 0:00:28]} a5 {[%emt 0:00:33]} 37. Bc6 {[%emt 0:01:15]} Rxh3 {[%emt 0:01:42]} 38. Bxb5 {[%emt 0:00:14]} d5 {[%emt 0:00:03]} 39. Kf1 {[%emt 0:04:32]} h5 {[%emt 0:00:27]} 40. Rf2 {[%emt 0:00:00]} Rd3 {[%emt 0:00:00]} 41. Ke2 {[%emt 0:05:57]} Rg3 {[%emt 0:17:31]} 42. a4 {[%emt 0:01:43]} Kf7 {[%emt 0:00:26]} 43. Kf1 {[%emt 0:04:13]} Ke6 {[%emt 0:03:01]} 44. Rd2 {[%emt 0:00:59]} Bf4 {[%emt 0:00:18]} 45. Re2+ {[%emt 0:02:59]} Re3 {[%emt 0:00:56]} 46. Rf2 {[%emt 0:00:59]} Ke5 {[%emt 0:01:17]} 47. Bc6 {[%emt 0:00:17]} Rd3 {[%emt 0:01:08]} 48. Re2+ {[%emt 0:00:13]} Kd6 {[%emt 0:01:16]} 49. Be8 {[%emt 0:00:07]} h4 {[%emt 0:00:16]} 0-1

[Event "13th SRB-ch Men 2019"]
[Site "Beograd"]
[Date "2019.04.09"]
[Round "4.2"]
[White "Nestorovic, Nikola"]
[Black "Cabarkapa, Novak"]
[Result "1-0"]
[ECO "B07"]
[WhiteElo "2473"]
[BlackElo "2454"]
[Annotator "ChessBase"]
[PlyCount "67"]
[EventDate "2019.04.06"]
[EventType "tourn"]
[EventCountry "SRB"]
[SourceTitle "playchess.com"]
[Source "ChessBase"]
[SourceQuality "1"]
[TimeControl "40/5400+30:1800+30"]

1. d4 {[%emt 0:00:00]} Nf6 {[%emt 0:00:00]} 2. Nf3 {[%emt 0:00:00]} g6 {[%emt 0:00:15]} 3. Nbd2 {[%emt 0:00:00]} Bg7 {[%emt 0:01:17]} 4. e4 {[%emt 0:00:00]} d6 {[%emt 0:00:18]} 5. Bb5+ {[%emt 0:00:00]} c6 {[%emt 0:03:33]} 6. Bd3 {[%emt 0:00:05]} O-O {[%emt 0:00:57]} 7. O-O {[%emt 0:00:07]} Qc7 {[%emt 0:01:27]} 8. Re1 {[%emt 0:00:52]} e5 {[%emt 0:01:36]} 9. c3 {[%emt 0:00:12]} a5 {[%emt 0:03:18]} 10. b3 {[%emt 0:03:41]} b5 {[%emt 0:04:34]} 11. a4 {[%emt 0:02:15]} exd4 {[%emt 0:05:37]} 12. cxd4 {[%emt 0:00:15]} b4 {[%emt 0:00:08]} 13. h3 {[%emt 0:17:59]} Ba6 {[%emt 0:07:13]} 14. Nf1 {[%emt 0:05:45]} Bxd3 {[%emt 0:05:39]} 15. Qxd3 {[%emt 0:00:11]} d5 {[%emt 0:00:06]} 16. e5 {[%emt 0:00:07]} Ne4 {[%emt 0:00:13]} 17. Ng5 {[%emt 0:07:06]} Nxg5 {[%emt 0:07:52]} 18. Bxg5 {[%emt 0:00:06]} Nd7 {[%emt 0:05:27]} 19. Be7 {[%emt 0:00:44]} Rfe8 {[%emt 0:04:10]} 20. Bd6 {[%emt 0:00:06]} Qb7 {[%emt 0:02:28]} 21. f4 {[%emt 0:09:25]} Qa6 {[%emt 0:05:15]} 22. Qf3 {[%emt 0:03:24]} Nf8 {[%emt 0:05:33]} 23. Rad1 {[%emt 0:07:58]} Ne6 {[%emt 0:02:56]} 24. f5 {[%emt 0:03:18]} gxf5 {[%emt 0:00:28]} 25. Qxf5 {[%emt 0:01:47]} Qa7 {[%emt 0:00:36]} 26. Qf2 {[%emt 0:02:15]} Rad8 {[%emt 0:02:10]} 27. Ng3 {[%emt 0:01:27]} f6 {[%emt 0:00:50]} 28. exf6 {[%emt 0:03:11]} Rxd6 {[%emt 0:00:07]} 29. Nf5 {[%emt 0:00:14]} Bf8 {[%emt 0:01:28]} 30. Qg3+ {[%emt 0:00:43]} Kf7 {[%emt 0:00:35]} 31. Nxd6+ {[%emt 0:00:30]} Bxd6 {[%emt 0:00:06]} 32. Qxd6 {[%emt 0:00:06]} Nxd4 {[%emt 0:00:05]} 33. Kh1 {[%emt 0:05:34]} Ne2 {[%emt 0:03:25]} 34. Qxc6 {[%emt 0:02:42]} 1-0

[Event "13th SRB-ch Men 2019"]
[Site "Beograd"]
[Date "2019.04.10"]
[Round "5.3"]
[White "Damljanovic, Branko"]
[Black "Milanovic, Danilo"]
[Result "0-1"]
[ECO "B41"]
[WhiteElo "2486"]
[BlackElo "2495"]
[Annotator "RC"]
[PlyCount "90"]
[EventDate "2019.04.06"]
[EventType "tourn"]
[EventCountry "SRB"]
[SourceTitle "playchess.com"]
[Source "ChessBase"]
[SourceQuality "1"]
[TimeControl "40/5400+30:1800+30"]

1. Nf3 {[%emt 0:00:00]} Nf6 {[%emt 0:00:00]} 2. c4 {[%emt 0:00:00]} c5 {[%emt 0:00:00]} 3. Nc3 {[%emt 0:00:00]} b6 {[%emt 0:00:03]} 4. e4 {[%emt 0:00:05]} d6 {[%emt 0:00:06]} 5. d4 {[%emt 0:00:10]} cxd4 {[%emt 0:00:06]} 6. Nxd4 {[%emt 0:00:04]} Bb7 {[%emt 0:00:09]} 7. f3 {[%emt 0:01:01]} e6 {[%emt 0:00:55]} 8. Be3 {[%emt 0:00:07]} a6 {[%emt 0:00:35]} 9. Be2 {[%emt 0:00:55]} Be7 {[%emt 0:00:10]} 10. Qd2 {[%emt 0:00:37]} O-O {[%emt 0:00:13]} 11. O-O {[%emt 0:04:08]} Qc7 {[%emt 0:00:36]} 12. Rfc1 {[%emt 0:00:14]} Rc8 {[%emt 0:01:07]} 13. b4 {[%emt 0:02:23]} Nbd7 {[%emt 0:06:38]} 14. Na4 {[%emt 0:15:51]} Qd8 {[%emt 0:01:40]} 15. Nb3 {[%emt 0:01:59]} Bc6 {[%emt 0:13:07]} 16. Nb2 {[%emt 0:04:33]} Bb7 {[%emt 0:22:42]} 17. a4 {[%emt 0:07:30]} a5 {[%emt 0:02:32]} 18. c5 {[%emt 0:03:37]} dxc5 {[%emt 0:25:36]} 19. bxa5 {[%emt 0:00:19]} bxa5 {[%emt 0:00:40]} 20. Nc4 {[%emt 0:00:17]} Ba6 {[%emt 0:00:09]} 21. Nbxa5 {[%emt 0:01:21]} Qc7 {[%emt 0:02:22]} 22. Bf1 {[%emt 0:10:53]} Rcb8 {[%emt 0:02:15]} 23. Qc2 {[%emt 0:02:23]} Ne8 {[%emt 0:10:47]} 24. Nb3 {[%emt 0:10:02]} Nd6 {[%emt 0:03:22]} 25. Nbd2 {[%emt 0:05:09]} Nxc4 {[%emt 0:01:16]} 26. Nxc4 {[%emt 0:03:22]} Bf6 {[%emt 0:01:04]} 27. Ra2 {[%emt 0:01:14]} h6 {[%emt 0:00:50]} 28. Na3 {[%emt 0:03:22]} Bxf1 {[%emt 0:02:14]} 29. Rxf1 {[%emt 0:00:03]} Nb6 {[%emt 0:02:42]} 30. Nb5 {[%emt 0:03:37]} Qc6 {[%emt 0:00:03]} 31. Rb1 {[%emt 0:00:07]} c4 {[%emt 0:00:17]} 32. f4 {[%emt 0:04:24]} Be7 {[%emt 0:01:12]} 33. a5 {[%emt 0:01:37]} Nd7 {[%emt 0:00:15]} 34. Nd4 {[%emt 0:00:39]} Qa6 {[%emt 0:00:19]} 35. e5 {[%emt 0:07:24]} Nc5 {[%emt 0:00:49]} 36. f5 {[%emt 0:04:13]} Nd3 {[%emt 0:00:17]} 37. fxe6 {[%emt 0:00:44]} fxe6 {[%emt 0:00:15]} 38. Rf1 {[%emt 0:00:30]} Rf8 {[%emt 0:00:42]} 39. Raa1 {[%emt 0:03:16]} Bc5 {[%emt 0:00:32]} 40. Rxf8+ {[%emt 0:00:00]} Rxf8 {[%emt 0:00:00]} 41. Qe2 {[%emt 0:01:21]} Nf4 {[%emt 0:07:58]} 42. Qc2 {[%emt 0:07:39]} Nd5 {[%emt 0:08:45]} 43. Bf2 {[%emt 0:01:07]} Rxf2 {[%emt 0:01:13]} 44. Qxf2 {[%emt 0:00:02]} Qa7 {[%emt 0:00:11]} 45. Rd1 {[%emt 0:00:54]} Nc3 {[%emt 0:15:46]} 0-1

[Event "13th SRB-ch Men 2019"]
[Site "Beograd"]
[Date "2019.04.11"]
[Round "6.1"]
[White "Zajic, Milan"]
[Black "Nestorovic, Nikola"]
[Result "1/2-1/2"]
[ECO "C60"]
[WhiteElo "2507"]
[BlackElo "2473"]
[Annotator "RC"]
[PlyCount "77"]
[EventDate "2019.04.06"]
[EventType "tourn"]
[EventCountry "SRB"]
[SourceTitle "playchess.com"]
[Source "ChessBase"]
[SourceQuality "1"]
[TimeControl "40/5400+30:1800+30"]

1. e4 {[%emt 0:01:22]} e5 {[%emt 0:00:00]} 2. Nf3 {[%emt 0:00:17]} Nc6 {[%emt 0:00:00]} 3. Bb5 {[%emt 0:00:04]} g6 {[%emt 0:00:00]} 4. d4 {[%emt 0:01:03]} exd4 {[%emt 0:00:00]} 5. Bg5 {[%emt 0:00:03]} Be7 {[%emt 0:00:00]} 6. Bxe7 {[%emt 0:00:06]} Qxe7 {[%emt 0:00:01]} 7. Bxc6 {[%emt 0:00:06]} dxc6 {[%emt 0:00:06]} 8. Qxd4 {[%emt 0:00:15]} Nf6 {[%emt 0:00:06]} 9. Nc3 {[%emt 0:00:36]} Bg4 {[%emt 0:01:56]} 10. Nd2 {[%emt 0:00:30]} c5 {[%emt 0:00:23]} 11. Qe3 {[%emt 0:00:02]} O-O-O {[%emt 0:01:18]} 12. h3 {[%emt 0:00:02]} Bd7 {[%emt 0:00:09]} 13. O-O-O {[%emt 0:02:37]} Bc6 {[%emt 0:02:50]} 14. Rhe1 {[%emt 0:00:58]} h5 {[%emt 0:06:49]} 15. Nf3 {[%emt 0:05:47]} Rxd1+ {[%emt 0:00:55]} 16. Rxd1 {[%emt 0:01:06]} Re8 {[%emt 0:29:09]} 17. Nd2 {[%emt 0:18:04]} h4 {[%emt 0:03:56]} 18. Qg5 {[%emt 0:07:02]} Nh5 {[%emt 0:02:34]} 19. Qxe7 {[%emt 0:04:32]} Rxe7 {[%emt 0:00:11]} 20. Nf3 {[%emt 0:23:57]} b5 {[%emt 0:00:59]} 21. Nxh4 {[%emt 0:00:07]} b4 {[%emt 0:00:14]} 22. Nb1 {[%emt 0:00:41]} Rxe4 {[%emt 0:01:28]} 23. g3 {[%emt 0:00:17]} Re2 {[%emt 0:21:37]} 24. Rd2 {[%emt 0:00:41]} Re5 {[%emt 0:01:20]} 25. Rd3 {[%emt 0:12:41]} g5 {[%emt 0:02:33]} 26. Nf5 {[%emt 0:00:45]} Rxf5 {[%emt 0:00:56]} 27. g4 {[%emt 0:00:02]} Rxf2 {[%emt 0:06:40]} 28. gxh5 {[%emt 0:00:11]} Rf1+ {[%emt 0:00:12]} 29. Rd1 {[%emt 0:00:36]} Rxd1+ {[%emt 0:00:11]} 30. Kxd1 {[%emt 0:00:04]} Bf3+ {[%emt 0:00:04]} 31. Ke1 {[%emt 0:00:10]} Bxh5 {[%emt 0:00:06]} 32. Nd2 {[%emt 0:00:04]} Bg6 {[%emt 0:00:43]} 33. c3 {[%emt 0:00:02]} Kd7 {[%emt 0:02:38]} 34. Kf2 {[%emt 0:00:28]} bxc3 {[%emt 0:02:35]} 35. bxc3 {[%emt 0:00:02]} Kc6 {[%emt 0:00:48]} 36. Nc4 {[%emt 0:00:28]} f6 {[%emt 0:01:06]} 37. Kg3 {[%emt 0:00:06]} Bf7 {[%emt 0:01:24]} 38. Nd2 {[%emt 0:00:24]} Bxa2 {[%emt 0:00:31]} 39. Ne4 {[%emt 0:00:03]} 1/2-1/2

[Event "13th SRB-ch Men 2019"]
[Site "Beograd"]
[Date "2019.04.11"]
[Round "6.4"]
[White "Markovic, Miroslav"]
[Black "Damljanovic, Branko"]
[Result "1/2-1/2"]
[ECO "B22"]
[WhiteElo "2384"]
[BlackElo "2486"]
[Annotator "RC"]
[PlyCount "23"]
[EventDate "2019.04.06"]
[EventType "tourn"]
[EventCountry "SRB"]
[SourceTitle "playchess.com"]
[Source "ChessBase"]
[SourceQuality "1"]
[TimeControl "40/5400+30:1800+30"]

1. e4 {[%emt 0:00:00]} c5 {[%emt 0:00:00]} 2. Nf3 {[%emt 0:00:00]} e6 {[%emt 0:00:00]} 3. c3 {[%emt 0:00:30]} Nf6 {[%emt 0:00:07]} 4. e5 {[%emt 0:00:10]} Nd5 {[%emt 0:00:02]} 5. d4 {[%emt 0:00:27]} cxd4 {[%emt 0:00:06]} 6. cxd4 {[%emt 0:00:07]} d6 {[%emt 0:00:06]} 7. a3 {[%emt 0:00:09]} Bd7 {[%emt 0:00:19]} 8. Bd3 {[%emt 0:00:15]} Bc6 {[%emt 0:00:06]} 9. O-O {[%emt 0:00:06]} Nd7 {[%emt 0:00:04]} 10. b4 {[%emt 0:01:15]} a6 {[%emt 0:00:39]} 11. Qe2 {[%emt 0:00:31]} Be7 {[%emt 1:34:01]} 12. Bd2 {[%emt 0:00:18]} 1/2-1/2